bitfinex/quotes_SOLUSD_20250821
["timestamp","ask_amount","ask_price","bid_price","bid_amount"]
[1755799406427,30.00175978,181.52,181.51,0.03]
[1755799406737,77.50860057,181.52,181.51,0.03]
[1755799407331,86.27226129,181.52,181.51,0.03]
[1755799407543,81.64031869,181.52,181.51,0.03]
[1755799410235,82.10031869,181.52,181.51,0.03]
[1755799410765,95.6959127,181.52,181.51,0.03]
[1755799410958,100.3278553,181.52,181.51,0.03]
[1755799411360,26.28432314,181.49,181.48,0.03]
[1755799411545,69.2159127,181.49,181.47,0.03]
[1755799411889,13.20031869,181.48,181.47,0.03]
[1755799412436,12.74031869,181.48,181.47,0.03]
[1755799412736,55.64031869,181.48,181.47,0.71]
[1755799413369,55.64031869,181.48,181.47,0.03]
[1755799413776,55.63357928,181.48,181.47,0.03]
[1755799414271,51.50860057,181.48,181.47,0.03]
[1755799416762,8.60860057,181.48,181.47,0.71]
[1755799416966,73.77116393,181.48,181.47,0.71]
[1755799417280,77.48860057,181.48,181.47,0.71]
[1755799417476,73.77116393,181.48,181.47,0.71]
[1755799417982,73.48684079,181.48,181.47,0.71]
[1755799419587,73.50684079,181.48,181.47,0.71]
[1755799420567,68.9,181.48,181.47,0.71]
[1755799420876,73.50684079,181.48,181.47,0.71]
[1755799422664,73.50684079,181.48,181.47,0.03]
[1755799422865,73.79116393,181.48,181.47,0.03]
[1755799423065,77.49841945,181.48,181.47,0.03]
[1755799423270,0.28432314,181.47,181.46,0.03]
[1755799423467,4.89116393,181.47,181.46,0.03]
[1755799423671,26.0,181.45,181.44,0.03]
[1755799423990,78.09368158,181.45,181.44,0.03]
[1755799425290,78.37800472,181.45,181.44,0.03]
[1755799428305,78.83800472,181.45,181.44,0.03]
[1755799428603,131.81388086,181.45,181.44,0.03]
[1755799429405,128.10800472,181.45,181.44,0.03]
[1755799429586,128.56800472,181.45,181.44,0.03]
[1755799429907,132.27383744,181.45,181.44,0.03]
[1755799430503,115.69383744,181.45,181.44,0.03]
[1755799430714,82.54383744,181.45,181.44,0.03]
[1755799430909,82.08383744,181.45,181.44,0.03]
[1755799431521,82.54383744,181.45,181.44,0.03]
[1755799431707,82.54383744,181.45,181.42,0.03]
[1755799431708,4.89116393,181.43,181.42,0.03]
[1755799432006,47.75116393,181.43,181.42,0.03]
[1755799432199,51.45699665,181.43,181.42,0.03]
[1755799433512,54.12773465,181.43,181.42,0.03]
[1755799433882,53.66773465,181.43,181.42,0.03]
[1755799434085,10.80773465,181.43,181.42,0.03]
[1755799434308,49.96190193,181.43,181.42,0.03]
[1755799434513,53.66773465,181.43,181.42,0.03]
[1755799435310,54.12773465,181.43,181.42,0.03]
[1755799435508,26.28432314,181.41,181.4,0.03]
[1755799435695,73.73116393,181.41,181.4,0.03]
[1755799436219,73.73116393,181.41,181.38,0.69]
[1755799436418,4.89116393,181.39,181.38,0.69]
[1755799436601,47.73116393,181.39,181.38,0.69]
[1755799437888,30.89116393,181.39,181.38,0.69]
[1755799438090,78.33800472,181.39,181.3,0.03]
[1755799438290,69.12432314,181.39,181.35,0.66]
[1755799439507,30.60684079,181.36,181.35,0.66]
[1755799439708,73.44684079,181.36,181.35,0.66]
[1755799439935,73.42684079,181.36,181.35,0.66]
[1755799441951,47.42684079,181.36,181.35,0.66]
[1755799443394,4.60684079,181.36,181.35,0.66]
[1755799443594,4.60684079,181.38,181.35,14.25559401]
[1755799443826,4.60684079,181.38,181.35,13.59559401]
[1755799443993,4.60684079,181.38,181.36,0.66]
[1755799444200,4.60684079,181.37,181.36,0.66]
[1755799444515,26.0,181.39,181.36,0.66]
[1755799444707,4.60684079,181.38,181.36,0.66]
[1755799445103,4.60684079,181.37,181.36,14.25559401]
[1755799445303,4.60684079,181.37,181.36,13.59559401]
[1755799445504,4.60684079,181.37,181.36,14.25559401]
[1755799447041,4.60684079,181.38,181.36,14.25559401]
[1755799447248,26.0,181.39,181.36,13.59559401]
[1755799447442,4.60684079,181.37,181.36,13.59559401]
[1755799447825,4.60684079,181.37,181.36,14.25559401]
[1755799449241,68.82,181.39,181.36,14.25559401]
[1755799449425,4.60684079,181.37,181.36,13.59559401]
[1755799449953,4.60684079,181.37,181.36,14.25559401]
[1755799450323,4.60684079,181.37,181.36,0.66]
[1755799450523,47.42684079,181.37,181.34,0.69]
[1755799450850,4.60684079,181.35,181.34,0.03]
[1755799451051,47.44684079,181.35,181.34,0.03]
[1755799451741,47.44684079,181.35,181.34,0.69]
[1755799452646,47.44684079,181.35,181.34,0.03]
[1755799452842,52.05368158,181.35,181.34,0.03]
[1755799453619,52.51368158,181.35,181.34,0.03]
[1755799453929,52.51368158,181.35,181.33,0.03]
[1755799453930,52.33800472,181.35,181.33,0.03]
[1755799454230,4.60684079,181.34,181.33,0.03]
[1755799456137,47.38684079,181.34,181.33,0.69]
[1755799456853,47.38684079,181.34,181.33,0.03]
[1755799457223,47.38684079,181.34,181.33,0.72]
[1755799458026,73.38684079,181.34,181.33,0.72]
[1755799460183,4.60684079,181.34,181.33,0.72]
[1755799460486,47.38684079,181.34,181.33,0.03]
[1755799464566,4.60684079,181.34,181.33,0.72]
[1755799471405,30.60684079,181.35,181.33,0.72]
[1755799471568,26.0,181.35,181.33,0.72]
[1755799471891,0.06,181.36,181.34,13.59559401]
[1755799472189,0.06,181.36,181.35,14.28559401]
[1755799473077,0.06,181.36,181.35,24.690957]
[1755799474492,0.06,181.36,181.35,14.56991715]
[1755799474987,4.66684079,181.36,181.35,14.28559401]
[1755799479066,0.06,181.36,181.35,14.28559401]
[1755799479271,0.06,181.38,181.36,13.59559401]
[1755799479470,0.06,181.38,181.36,14.28559401]
[1755799479686,0.06,181.38,181.37,14.28559401]
[1755799479876,0.06,181.38,181.37,19.79918501]
[1755799480082,0.06,181.38,181.37,14.28559401]
[1755799480393,0.06,181.38,181.37,19.79918501]
[1755799480969,0.06,181.38,181.37,14.28559401]
[1755799481974,0.06,181.38,181.37,19.79918501]
[1755799483401,0.06,181.38,181.37,24.4060258]
[1755799484804,0.06,181.38,181.37,24.69034894]
[1755799488808,0.06,181.38,181.37,19.17675794]
[1755799489188,0.06,181.38,181.37,14.56991715]
[1755799489581,0.06,181.38,181.37,19.17675794]
[1755799489983,0.06,181.38,181.37,14.56991715]
[1755799490211,0.06,181.38,181.37,19.17675794]
[1755799490380,0.06,181.38,181.37,14.28559401]
[1755799490704,0.06,181.38,181.37,18.8924348]
[1755799491103,0.06,181.38,181.37,13.59559401]
[1755799492386,4.66684079,181.38,181.37,13.59559401]
[1755799492785,4.66684079,181.38,181.34,0.72]
[1755799493003,4.60684079,181.37,181.34,13.59559401]
[1755799493312,4.60684079,181.37,181.34,14.31559401]
[1755799494015,4.60684079,181.37,181.33,0.03]
[1755799494016,4.60684079,181.36,181.33,14.34559401]
[1755799494186,26.52,181.37,181.33,14.34559401]
[1755799494380,4.60684079,181.36,181.33,14.34559401]
[1755799494581,4.60684079,181.36,181.34,0.03]
[1755799495495,5.12684079,181.36,181.34,0.03]
[1755799495901,4.60684079,181.36,181.34,0.03]
[1755799497011,26.0,181.37,181.35,0.72]
[1755799497215,0.06,181.38,181.35,0.72]
[1755799497389,4.66684079,181.38,181.36,0.72]
[1755799498320,4.66684079,181.38,181.34,13.62559401]
[1755799498820,4.66684079,181.38,181.35,0.72]
[1755799499300,30.66684079,181.38,181.36,0.72]
[1755799500214,4.60684079,181.37,181.34,19.8600317]
[1755799500422,4.60684079,181.37,181.36,0.72]
[1755799500612,4.66684079,181.38,181.36,0.72]
[1755799500809,0.06,181.38,181.37,0.72]
[1755799501027,0.06,181.38,181.37,14.31559401]
[1755799501726,0.06,181.38,181.37,19.20675794]
[1755799502944,0.06,181.38,181.37,24.72034894]
[1755799503428,0.06,181.38,181.37,34.72034894]
[1755799504010,0.06,181.38,181.37,24.72034894]
[1755799504211,0.06,181.38,181.37,34.72034894]
[1755799504843,0.06,181.4,181.38,13.87991715]
[1755799505009,0.06,181.4,181.39,23.99974101]
[1755799505335,0.06,181.4,181.39,24.71974101]
[1755799505545,0.06,181.4,181.39,19.20675794]
[1755799507014,0.06,181.4,181.39,24.71974101]
[1755799507433,0.06,181.4,181.39,19.20675794]
[1755799508142,0.06,181.4,181.39,24.71974101]
[1755799514471,0.06,181.4,181.39,18.48675794]
[1755799515152,0.06,181.4,181.39,24.71974101]
[1755799517042,0.06,181.4,181.39,20.11290022]
[1755799517265,0.06,181.4,181.39,23.99974101]
[1755799518765,0.06,181.4,181.39,19.39290022]
[1755799519544,0.06,181.4,181.39,20.08290022]
[1755799521041,0.06,181.4,181.39,24.68974101]
[1755799522150,0.06,181.4,181.39,19.17675794]
[1755799522355,0.06,181.4,181.39,13.87991715]
[1755799523559,0.06,181.4,181.39,20.08290022]
[1755799523766,0.06,181.4,181.39,24.68974101]
[1755799524281,0.06,181.4,181.39,20.08290022]
[1755799524455,0.06,181.4,181.39,24.68974101]
[1755799524856,0.06,181.4,181.39,50.68974101]
[1755799525061,0.06,181.4,181.39,24.68974101]
[1755799526493,0.06,181.42,181.41,39.59559401]
[1755799526793,0.06,181.44,181.42,13.87991715]
[1755799526965,0.06,181.44,181.43,61.20675794]
[1755799527156,0.06,181.44,181.43,66.71852556]
[1755799527663,0.06,181.44,181.43,56.59991715]
[1755799527872,0.06,181.44,181.43,82.59991715]
[1755799528192,0.06,181.44,181.43,88.11168477]
[1755799528985,0.06,181.44,181.43,82.59991715]
[1755799529358,0.06,181.44,181.43,39.59559401]
[1755799529559,0.06,181.44,181.43,82.37559401]
[1755799529772,0.06,181.44,181.43,13.59559401]
[1755799529773,0.58,181.44,181.43,13.59559401]
[1755799530102,5.18684079,181.44,181.43,13.59559401]
[1755799531807,0.06,181.44,181.43,13.59559401]
[1755799531973,0.06,181.44,181.43,18.8924348]
[1755799532177,0.06,181.44,181.43,14.28559401]
[1755799532602,0.06,181.44,181.43,19.79736163]
[1755799532913,0.06,181.44,181.43,24.68852556]
[1755799533780,5.18684079,181.52,181.43,24.68852556]
[1755799533781,0.58,181.52,181.47,39.59559401]
[1755799533985,0.06,181.52,181.48,43.49]
[1755799534227,4.60684079,181.5,181.48,42.8]
[1755799534517,0.52,181.51,181.48,42.8]
[1755799534518,4.60684079,181.51,181.48,42.8]
[1755799534741,5.12684079,181.51,181.48,42.8]
[1755799534922,4.60684079,181.51,181.48,42.8]
[1755799535419,4.66684079,181.52,181.48,42.8]
[1755799535619,0.52,181.51,181.48,42.8]
[1755799535926,4.60684079,181.5,181.48,42.8]
[1755799536131,5.12684079,181.49,181.48,42.8]
[1755799536299,5.12684079,181.49,181.46,13.59559401]
[1755799536632,4.60684079,181.47,181.46,13.59559401]
[1755799537035,0.52,181.51,181.46,13.59559401]
[1755799537036,4.60684079,181.49,181.46,13.59559401]
[1755799537245,4.60684079,181.5,181.47,0.69]
[1755799537427,0.06,181.52,181.47,43.51]
[1755799537626,4.60684079,181.5,181.47,49.02051675]
[1755799537850,0.58,181.52,181.47,48.33051675]
[1755799538147,4.60684079,181.5,181.47,49.02051675]
[1755799538348,0.06,181.52,181.48,14.28559401]
[1755799538641,4.66684079,181.52,181.48,14.28559401]
[1755799539241,4.60684079,181.51,181.48,14.28559401]
[1755799539423,4.60684079,181.51,181.5,13.59559401]
[1755799541110,4.60684079,181.51,181.48,19.10577727]
[1755799541306,0.06,181.52,181.5,13.59559401]
[1755799541522,4.60684079,181.51,181.5,13.59559401]
[1755799541750,0.06,181.52,181.5,13.59559401]
[1755799542120,4.60684079,181.51,181.5,13.59559401]
[1755799542851,0.06,181.52,181.5,0.69]
[1755799543013,0.06,181.52,181.51,14.28559401]
[1755799543209,0.06,181.52,181.51,61.95675794]
[1755799544046,0.06,181.52,181.51,67.46609626]
[1755799544218,0.06,181.52,181.51,62.85925547]
[1755799544416,0.06,181.52,181.51,56.65991715]
[1755799544615,0.06,181.52,181.51,57.34991715]
[1755799545038,4.66684079,181.52,181.51,13.59559401]
[1755799545337,5.18684079,181.52,181.51,13.59559401]
[1755799545954,4.66684079,181.52,181.51,13.59559401]
[1755799547164,5.18684079,181.52,181.51,13.59559401]
[1755799547371,5.18684079,181.52,181.5,13.59559401]
[1755799547665,4.60684079,181.51,181.5,13.59559401]
[1755799548374,4.60684079,181.51,181.49,13.59559401]
[1755799548746,4.66684079,181.52,181.51,39.59559401]
[1755799548944,4.66684079,181.52,181.51,13.59559401]
[1755799549176,0.06,181.52,181.51,40.31559401]
[1755799549641,0.06,181.52,181.51,39.59559401]
[1755799551169,0.06,181.52,181.51,14.31559401]
[1755799552067,0.06,181.52,181.51,67.49609626]
[1755799560182,0.1,181.53,181.51,67.49609626]
[1755799560390,0.06,181.55,181.54,39.87991715]
[1755799560593,0.06,181.55,181.54,87.20675794]
[1755799560793,0.06,181.55,181.54,97.20675794]
[1755799561000,0.06,181.55,181.54,97.92675794]
[1755799561213,1e-08,181.56,181.55,23.87991715]
[1755799561501,1e-08,181.56,181.55,29.20675794]
[1755799562284,1e-08,181.56,181.55,20.10804163]
[1755799562479,1e-08,181.56,181.55,24.71488242]
[1755799562897,1e-08,181.56,181.55,67.57488242]
[1755799563076,1e-08,181.56,181.55,62.96804163]
[1755799563275,1e-08,181.56,181.55,67.57488242]
[1755799564085,1e-08,181.56,181.55,26.0]
[1755799564382,1e-08,181.56,181.55,56.45559401]
[1755799564578,1e-08,181.56,181.55,87.0624348]
[1755799564783,1e-08,181.56,181.55,82.59775558]
[1755799564983,1e-08,181.56,181.55,82.73991715]
[1755799565504,1e-08,181.56,181.55,39.87991715]
[1755799565719,1e-08,181.56,181.55,82.73991715]
[1755799566617,1e-08,181.56,181.55,88.96804163]
[1755799566821,1e-08,181.56,181.55,93.57488242]
[1755799567906,1e-08,181.56,181.55,67.57488242]
[1755799570210,1e-08,181.56,181.55,62.96804163]
[1755799570509,1e-08,181.56,181.55,67.57488242]
[1755799570720,1e-08,181.56,181.55,62.96804163]
[1755799570899,1e-08,181.56,181.55,67.57488242]
[1755799572215,1e-08,181.56,181.55,62.96804163]
[1755799572398,1e-08,181.56,181.55,24.71488242]
[1755799572592,1e-08,181.56,181.55,56.41559401]
[1755799572792,1e-08,181.56,181.55,82.41559401]
[1755799573001,1e-08,181.56,181.55,56.41559401]
[1755799573418,1e-08,181.56,181.55,56.55775558]
[1755799573718,1e-08,181.56,181.55,56.41559401]
[1755799574187,1e-08,181.56,181.55,56.55775558]
[1755799574390,1e-08,181.56,181.55,56.41559401]
[1755799574730,5.1268408,181.56,181.54,42.84]
[1755799574920,5.12684079,181.55,181.54,42.84]
[1755799575117,5.12684079,181.55,181.54,13.59559401]
[1755799578501,5.12684079,181.55,181.52,42.82]
[1755799578833,0.52,181.54,181.53,13.59559401]
[1755799579008,0.52,181.54,181.52,13.59559401]
[1755799579600,0.52,181.54,181.51,0.03]
[1755799579826,4.60684079,181.52,181.51,0.03]
[1755799580327,0.52,181.52,181.51,0.03]
[1755799580528,5.12684079,181.52,181.51,0.03]
[1755799581828,0.52,181.52,181.51,0.03]
[1755799582034,4.60684079,181.52,181.51,0.03]
[1755799582232,1e-08,181.56,181.51,0.03]
[1755799582233,0.52000001,181.56,181.51,0.03]
[1755799582530,4.60684079,181.53,181.51,0.03]
[1755799583234,4.60684079,181.54,181.51,0.03]
[1755799583412,4.60684079,181.54,181.51,42.85]
[1755799583613,4.60684079,181.53,181.51,42.85]
[1755799584527,1e-08,181.56,181.52,0.65]
[1755799584706,4.60684079,181.55,181.54,13.59559401]
[1755799584902,5.12684079,181.55,181.54,13.59559401]
[1755799585101,4.60684079,181.55,181.52,13.59559401]
[1755799585313,4.60684079,181.54,181.52,13.59559401]
[1755799585511,4.60684079,181.53,181.52,13.59559401]
[1755799587241,4.60684079,181.54,181.52,14.24559401]
[1755799587631,4.60684079,181.54,181.52,13.59559401]
[1755799587821,4.60684079,181.53,181.52,13.59559401]
[1755799590122,4.70684079,181.53,181.52,13.59559401]
[1755799590326,4.60684079,181.53,181.52,13.59559401]
[1755799590838,4.70684079,181.53,181.52,13.59559401]
[1755799591912,4.60684079,181.53,181.52,13.59559401]
[1755799594325,4.60684079,181.53,181.52,13.62559401]
[1755799595121,5.12684079,181.53,181.52,0.03]
[1755799595320,9.73368158,181.53,181.52,0.03]
[1755799595647,5.12684079,181.53,181.52,0.03]
[1755799596241,9.73368158,181.53,181.52,0.03]
[1755799596636,14.16568201,181.53,181.5,0.03]
[1755799596816,4.60684079,181.51,181.5,0.03]
[1755799597534,5.12684079,181.51,181.5,0.03]
[1755799597943,5.12684079,181.51,181.48,0.03]
[1755799598146,4.60684079,181.49,181.48,0.03]
[1755799598652,5.12684079,181.49,181.48,0.03]
[1755799598840,4.60684079,181.49,181.48,0.03]
[1755799600545,5.12684079,181.49,181.48,0.03]
[1755799600752,4.60684079,181.49,181.48,0.03]
[1755799603953,5.12684079,181.49,181.48,0.03]
[1755799604132,4.60684079,181.49,181.48,0.03]
[1755799606074,5.12684079,181.49,181.48,0.03]
[1755799606374,4.60684079,181.49,181.48,0.03]
[1755799607043,5.12684079,181.49,181.48,0.03]
[1755799607728,4.60684079,181.49,181.48,0.03]
[1755799610364,4.60684079,181.49,181.48,14.32559401]
[1755799611573,0.06,181.5,181.48,14.32559401]
[1755799611738,4.60684079,181.49,181.48,13.62559401]
[1755799612570,4.60684079,181.49,181.48,14.32559401]
[1755799612772,4.66684079,181.5,181.49,13.59559401]
[1755799612970,0.06,181.5,181.49,14.29559401]
[1755799613635,0.06,181.5,181.49,14.57991715]
[1755799613835,0.06,181.52,181.51,18.48675794]
[1755799614036,0.06,181.52,181.51,23.99609626]
[1755799614264,0.06,181.52,181.51,24.69609626]
[1755799614558,0.06,181.52,181.51,26.90378426]
[1755799617174,0.06,181.52,181.51,69.96378426]
[1755799618279,0.06,181.57,181.55,39.87991715]
[1755799618496,0.06,181.57,181.55,87.52675794]
[1755799618781,0.06,181.57,181.55,88.22675794]
[1755799619262,0.06,181.57,181.55,62.22675794]
[1755799619456,0.06,181.57,181.55,72.22675794]
[1755799619975,0.06,181.57,181.55,77.73488242]
[1755799620778,0.06,181.57,181.56,18.48675794]
[1755799621078,1e-08,181.57,181.56,19.18675794]
[1755799621281,1e-08,181.57,181.56,29.18675794]
[1755799622376,1e-08,181.57,181.56,34.69457904]
[1755799624682,0.06,181.66,181.59,0.28432314]
[1755799624683,1e-08,181.6,181.59,0.28432314]
[1755799624859,1e-08,181.6,181.59,76.09359873]
[1755799625058,1e-08,181.6,181.59,76.79359873]
[1755799625470,1e-08,181.6,181.59,72.18675794]
[1755799625859,1e-08,181.6,181.59,76.79359873]
[1755799626373,0.06,181.66,181.62,39.59559401]
[1755799626580,0.06,181.66,181.65,49.99185015]
[1755799626882,0.06,181.66,181.65,92.97185015]
[1755799627087,0.06,181.66,181.65,93.67185015]
[1755799627269,0.06,181.66,181.65,98.85869115]
[1755799628560,0.06,181.66,181.65,104.36432528]
[1755799630892,0.06,181.66,181.65,98.85869115]
[1755799631269,0.06,181.66,181.65,55.87869115]
[1755799631471,0.06,181.66,181.65,98.81869115]
[1755799632782,0.06,181.66,181.65,66.3092758]
[1755799633097,0.06,181.66,181.65,92.62752701]
[1755799633259,0.06,181.66,181.65,92.76968858]
[1755799633463,0.06,181.66,181.65,92.91185015]
[1755799636170,0.06,181.66,181.65,87.40675794]
[1755799636381,0.06,181.66,181.65,13.73775558]
[1755799636584,0.64,181.66,181.65,56.47559401]
[1755799636967,5.24684079,181.66,181.65,56.47559401]
[1755799637166,0.64,181.66,181.65,13.59559401]
[1755799637365,0.06,181.66,181.65,13.59559401]
[1755799637703,0.64,181.66,181.65,13.59559401]
[1755799638174,5.24684079,181.66,181.65,13.59559401]
[1755799638375,5.24684079,181.66,181.55,0.7]
[1755799638685,4.60684079,181.63,181.58,4.60684079]
[1755799638888,0.58,181.62,181.59,56.49559401]
[1755799639471,0.58,181.62,181.59,62.0024232]
[1755799639797,0.06,181.66,181.62,0.14216157]
[1755799639986,0.64,181.66,181.63,18.2024348]
[1755799640310,0.06,181.66,181.64,42.88]
[1755799640514,0.58,181.65,181.64,56.47559401]
[1755799640810,0.06,181.66,181.65,13.87991715]
[1755799641006,0.06,181.66,181.65,18.48675794]
[1755799641509,0.06,181.66,181.65,13.87991715]
[1755799641720,0.06,181.66,181.65,23.99185015]
[1755799641915,0.06,181.66,181.65,18.48675794]
[1755799642217,0.06,181.66,181.65,23.99185015]
[1755799642511,0.06,181.66,181.65,24.69185015]
[1755799646604,0.06,181.66,181.65,63.2882978]
[1755799646798,0.06,181.66,181.65,61.36675794]
[1755799647006,0.06,181.66,181.65,56.75991715]
[1755799647376,0.06,181.66,181.65,61.36675794]
[1755799647576,0.06,181.66,181.65,67.57185015]
[1755799648087,0.06,181.66,181.65,62.96500936]
[1755799648409,0.06,181.66,181.65,66.87185015]
[1755799648898,0.06,181.66,181.65,0.28432314]
[1755799649100,0.64,181.66,181.65,13.59559401]
[1755799649273,0.64,181.66,181.65,56.45559401]
[1755799649948,0.06,181.66,181.65,56.45559401]
[1755799650077,0.64,181.66,181.65,56.45559401]
[1755799650285,0.06,181.66,181.65,56.45559401]
[1755799651622,5.24684079,181.66,181.65,13.59559401]
[1755799652483,5.24684079,181.66,181.62,0.03]
[1755799652683,4.60684079,181.63,181.62,0.03]
[1755799653105,5.18684079,181.63,181.62,0.03]
[1755799653699,0.58,181.63,181.62,0.03]
[1755799653910,0.64,181.66,181.62,0.03]
[1755799654101,4.60684079,181.65,181.63,13.59559401]
[1755799654308,5.18684079,181.64,181.63,13.59559401]
[1755799655258,4.60684079,181.64,181.63,13.59559401]
[1755799655455,5.18684079,181.64,181.63,13.59559401]
[1755799655752,5.18684079,181.64,181.62,0.03]
[1755799655909,4.60684079,181.63,181.62,0.03]
[1755799656109,5.18684079,181.63,181.62,0.03]
[1755799658324,4.60684079,181.63,181.62,0.03]
[1755799658529,4.60684079,181.65,181.62,0.03]
[1755799659039,0.64,181.66,181.62,0.03]
[1755799659340,0.06,181.66,181.64,13.59559401]
[1755799659545,0.06,181.66,181.64,14.29559401]
[1755799660816,0.06,181.66,181.65,62.06675794]
[1755799662231,0.06,181.66,181.65,67.57185015]
[1755799662845,0.06,181.7,181.65,81.33458067]
[1755799663042,0.06,181.7,181.69,18.2024348]
[1755799663227,0.06,181.7,181.69,61.1224348]
[1755799663550,0.06,181.7,181.69,13.59559401]
[1755799663722,0.06,181.7,181.69,56.51559401]
[1755799664926,0.06,181.7,181.69,62.01947424]
[1755799665545,0.06,181.7,181.69,67.61063817]
[1755799667644,0.06,181.7,181.69,66.91063817]
[1755799667841,0.06,181.7,181.69,67.58063817]
[1755799670620,0.1,181.75,181.73,13.59559401]
[1755799670837,0.1,181.75,181.74,56.53559401]
[1755799672032,0.1,181.75,181.74,62.09675794]
[1755799672751,0.1,181.75,181.74,67.59912395]
[1755799675152,0.1,181.75,181.74,67.57912395]
[1755799676733,0.1,181.75,181.74,19.15675794]
[1755799676942,5.28684079,181.75,181.74,13.59559401]
[1755799677339,0.68,181.75,181.74,13.59559401]
[1755799678250,0.1,181.75,181.74,13.59559401]
[1755799678628,0.68,181.75,181.74,13.59559401]
[1755799680338,5.28684079,181.75,181.72,42.92]
[1755799680553,0.58,181.74,181.73,13.59559401]
[1755799680722,5.18684079,181.74,181.73,13.59559401]
[1755799681145,5.18684079,181.74,181.65,6.17501801]
[1755799681334,0.58,181.73,181.68,13.59559401]
[1755799681537,4.60684079,181.72,181.68,13.59559401]
[1755799681764,4.60684079,181.72,181.69,43.57]
[1755799682071,4.60684079,181.73,181.69,43.57]
[1755799682272,0.1,181.75,181.7,13.87991715]
[1755799682566,4.60684079,181.74,181.7,13.59559401]
[1755799682729,4.60684079,181.71,181.7,13.59559401]
[1755799682929,4.60684079,181.71,181.67,42.88]
[1755799682930,5.18684079,181.71,181.67,42.88]
[1755799683165,0.58,181.7,181.68,13.59559401]
[1755799683376,4.60684079,181.72,181.68,14.26559401]
[1755799683666,4.60684079,181.7,181.66,0.03]
[1755799683832,4.60684079,181.7,181.68,13.59559401]
[1755799684525,5.18684079,181.69,181.66,0.03]
[1755799684729,4.60684079,181.67,181.66,0.03]
[1755799685171,5.18684079,181.67,181.66,0.03]
[1755799689156,48.08684079,181.67,181.66,0.03]
[1755799689750,48.08684079,181.67,181.62,0.03]
[1755799689951,4.60684079,181.63,181.62,0.03]
[1755799690471,9.79368158,181.63,181.62,0.03]
[1755799691372,5.18684079,181.63,181.62,0.03]
[1755799691561,9.79368158,181.63,181.62,0.03]
[1755799691876,26.0,181.6,181.58,0.03]
[1755799692044,30.60684079,181.59,181.58,0.03]
[1755799692250,31.18684079,181.59,181.58,0.03]
[1755799695248,31.47116393,181.59,181.49,0.2]
[1755799695455,4.60684079,181.5,181.49,13.79559401]
[1755799695858,4.60684079,181.5,181.49,0.2]
[1755799696250,0.58,181.52,181.49,0.2]
[1755799696450,4.60684079,181.5,181.49,0.2]
[1755799697870,4.60684079,181.51,181.5,13.59559401]
[1755799698257,4.60684079,181.51,181.5,14.30559401]
[1755799698768,4.60684079,181.51,181.49,13.79559401]
[1755799698976,4.60684079,181.5,181.49,13.79559401]
[1755799699173,4.60684079,181.5,181.49,14.50559401]
[1755799699556,4.60684079,181.51,181.49,14.50559401]
[1755799699772,68.98,181.55,181.5,0.71]
[1755799699959,4.60684079,181.51,181.5,14.30559401]
[1755799700655,68.98,181.55,181.5,14.30559401]
[1755799700869,4.60684079,181.51,181.49,0.2]
[1755799701060,4.60684079,181.5,181.49,0.2]
[1755799702195,68.98,181.55,181.49,0.91]
[1755799702362,4.60684079,181.5,181.49,0.91]
[1755799704581,4.60684079,181.5,181.49,0.2]
[1755799706590,4.60684079,181.5,181.49,0.91]
[1755799706766,43.0,181.54,181.49,0.91]
[1755799707086,4.60684079,181.5,181.49,0.91]
[1755799707255,26.0,181.55,181.5,14.30559401]
[1755799707256,4.60684079,181.51,181.5,14.30559401]
[1755799707457,4.60684079,181.51,181.5,13.59559401]
[1755799708291,4.60684079,181.51,181.5,14.30559401]
[1755799711379,68.98,181.55,181.51,13.59559401]
[1755799711380,4.60684079,181.53,181.51,13.59559401]
[1755799711583,4.60684079,181.55,181.52,0.71]